Cogmind - Beta 15 @@@ ROGUE MODE // 2025.09.14 @ 19:41:26 Player: potator Result: Destroyed by 2A-809(R) with Subdweller Machine Gun Performance ------------- Evolutions (0) 0 Regions Visited (3) 600 Robots Destroyed (19) 95 Value Destroyed (452) 452 Prototype IDs (3) 60 Alien Tech Used (0) 0 Bonus (0) 0 TOTAL SCORE: 1207 Bonus ------- None Cogmind --------- Core Integrity 0/250 Matter 273/300 Energy 250/250 System Corruption 3% Temperature Cool (0) Movement Treading (160) Location -10/Subcaves Parts ------- > --- POWER (1) -------- Ion Engine > --- PROPULSION (2) --- Light Treads > --- UTILITY (2) ------ Small Storage Unit > --- WEAPON (2) ------- Assault Rifle Assault Rifle > --- INVENTORY (8) ---- Light Treads Heat Sink Authchip [Device] Authchip [Weapon] Assault Rifle Grenade Launcher Mining Laser Peak State ------------ > --- POWER ------------ Ion Engine > --- PROPULSION ------- Light Treads Light Treads > --- UTILITY ---------- Small Storage Unit > --- WEAPON ----------- Assault Rifle Assault Rifle > --- INVENTORY -------- Light Treads Authchip [Device] Authchip [Weapon] Assault Rifle Assault Rifle Grenade Launcher [Rating: 7] Favorites ----------- Power Ion Engine Engine Ion Engine Propulsion Light Treads Treads Light Treads Utility Small Storage Unit Storage Small Storage Unit Weapon Assault Rifle Ballistic Gun Assault Rifle Special Weapon Mining Laser Build | -11 -10 -10 -10 ------- Run | Yrd Mat Min Sub Slots Evolved . | . . . . Power . | . . . . Propulsion . | . . . . Utility . | . . . . Weapon . | . . . . Parts Attached 11 | 6 2 3 . Power 1 | 1 . . . Engine 1 | 1 . . . Core . | . . . . Reactor . | . . . . Propulsion 3 | 2 . 1 . Treads 3 | 2 . 1 . Leg . | . . . . Wheel . | . . . . Hover . | . . . . Flight . | . . . . Utility 1 | 1 . . . Device . | . . . . Storage 1 | 1 . . . Processor . | . . . . Hackware . | . . . . Protection . | . . . . Artifact . | . . . . Weapon 6 | 2 2 2 . Energy Gun . | . . . . Energy Cannon . | . . . . Ballistic Gun 5 | 2 2 1 . Ballistic Cannon . | . . . . Launcher . | . . . . Special Weapon 1 | . . 1 . Impact Weapon . | . . . . Slashing Weapon . | . . . . Piercing Weapon . | . . . . Special Melee Weapon . | . . . . Unidentified Prototypes . | . . . . Parts Lost 3 | . 1 1 1 Power . | . . . . Propulsion 2 | . . 1 1 Utility . | . . . . Weapon 1 | . 1 . . Highest Loss Streak 1 | . 1 1 1 To Critical Strikes . | . . . . Average Backups 6 | 3 4 7 7 Power . | . . . . Propulsion 1 | 1 . 1 1 Utility 2 | . 1 2 3 Weapon 2 | 1 2 3 3 Tool/Special . | . . . . Unused Backups 5 | . . . 5 Power . | . . . . Propulsion 1 | . . . 1 Utility 3 | . . . 3 Weapon 1 | . . . 1 Tool/Special . | . . . . Average Slot Usage (%) 84 | . 85 84 78 Engine 14 | . 14 14 14 Treads 27 | . 28 27 21 Storage 14 | . 14 14 14 Ballistic Gun 27 | . 28 27 28 Peak Build Rating 7 | 6 7 7 7 Average Rating 6 | 1 6 6 6 On Entrance 5 | . 6 7 7 Naked Turns . | . . . . Heaviest Build 14 | 13 14 14 14 Greatest Support 40 | 40 40 40 40 Greatest Overweight (x) . | . . . . Average Overweight (x) . | . . . . Largest Inventory Capacity 8 | 8 8 8 8 Average Capacity 7 | 5 8 8 8 Most Carried 8 | 5 7 8 7 Average Carried 6 | 3 4 7 7 Final Capacity 8 | 8 8 8 8 Final Carried 7 | . 7 7 7 Class Distribution -------------------- 100% | Mutant Dominant Class ---------------- Mutant | -10/Materials Mutant | -10/Mines Mutant | -10/Subcaves Resources | -11 -10 -10 -10 ----------- Run | Yrd Mat Min Sub Matter Collected 658 | 210 321 127 . Remotely . | . . . . Salvage Created 584 | . 429 155 . Parts 39 | . 28 11 . Haulers Intercepted 2 | . 2 . . Recyclers Shooed . | . . . . Parts Field Recycled . | . . . . Retrieved Matter . | . . . . Parts Self-Destructed . | . . . . Prevented . | . . . . Kills | -11 -10 -10 -10 ------- Run | Yrd Mat Min Sub Combat Hostiles Destroyed 13 | . 6 7 . Guns 13 | . 6 7 . Classes Destroyed 5 | . 4 1 . Hauler 2 | . 2 . . Operator 1 | . 1 . . Watcher 3 | . 3 . . Swarmer 5 | . . 5 . Grunt 8 | . 6 2 . Best Kill Streak 3 | . 2 3 . Combat Bots Only 3 | . 2 3 . Max Kills in Single Turn 2 | . 1 2 . Gunslinging 1 | . . 1 . Exploded . | . . . . Melee . | . . . . Uniques/NPCs Destroyed . | . . . . Combat | -11 -10 -10 -10 -------- Run | Yrd Mat Min Sub Hostile Shots Fired 72 | . 36 15 21 Missed 15 | . 8 6 1 Hits 57 | . 28 9 20 Projectile 57 | . 28 9 20 Critical Strikes 1 | . 1 . . Damage Taken 1133 | . 385 308 440 Core 267 | . 109 21 137 Absorbed by Shields . | . . . . Core Remaining (%) 100 | 100 . . . Volleys Fired 59 | . 43 12 4 Largest 2 | . 2 2 2 Hottest 100 | . 40 100 40 Shots Fired 114 | . 86 20 8 Gun 110 | . 86 16 8 Cannon . | . . . . Launcher . | . . . . Special 4 | . . 4 . Kinetic 110 | . 86 16 8 Thermal 4 | . . 4 . Explosive . | . . . . Electromagnetic . | . . . . Robot Hit Streak 8 | . 8 5 3 Robot Miss Streak 3 | . 3 1 1 Penetration Max . | . . . . Secondary Targets 3 | . 1 2 . Max Gunslinging Chain 1 | . 1 1 . Shots Hit Robots 74 | . 56 12 6 Core Hits 31 | . 21 10 . Critical Kills . | . . . . Critical Parts Destroyed . | . . . . Critical Strikes . | . . . . Melee Attacks . | . . . . Impact . | . . . . Slashing . | . . . . Piercing . | . . . . Sneak Attacks . | . . . . Combat Hostiles . | . . . . Follow-up Attacks . | . . . . Damage Inflicted 847 | . 677 147 23 Guns 847 | . 677 147 23 Cannons . | . . . . Explosions . | . . . . Melee . | . . . . Ramming . | . . . . Kinetic 847 | . 677 147 23 Thermal . | . . . . Explosive . | . . . . Electromagnetic . | . . . . Impact . | . . . . Slashing . | . . . . Piercing . | . . . . Highest Corruption 3 | . 1 3 3 Average Corruption 1 | . 1 1 3 Corruption Purged . | . . . . Corruption Blocked . | . . . . Effects 30 | . . 30 . Message Errors 9 | . . 9 . Matter Fused 9 | . . 9 . Heat Flow Errors 4 | . . 4 . Energy Discharges 5 | . . 5 . Data Loss (minor) 2 | . . 2 . Alerts 1 | . . 1 . Overload Shots . | . . . . Overflow Damage . | . . . . Projectiles . | . . . . Explosions . | . . . . Melee . | . . . . Knockbacks . | . . . . Impact . | . . . . Kinetic . | . . . . Secondary . | . . . . Self-Inflicted Damage . | . . . . Shots . | . . . . Rammed . | . . . . Targets Rammed . | . . . . Kicked . | . . . . Crushed . | . . . . Highest Temperature 213 | . 20 213 . Average Temperature 61 | . 5 78 . Received Heat Transfer 324 | . 240 30 54 Siege Activations . | . . . . Martial Activations . | . . . . Shielding Activations . | . . . . Robots Disrupted . | . . . . Combat Hostiles . | . . . . Robots Corrupted . | . . . . Combat Hostiles . | . . . . Parts Fried 2 | . 2 . . Impact Corruptions . | . . . . Robots Melted . | . . . . Combat Hostiles . | . . . . Parts Melted . | . . . . Heat Transferred . | . . . . Parts Sabotaged . | . . . . Parts Stolen . | . . . . Parts Stripped . | . . . . Power Chain Reactions . | . . . . Alert | -11 -10 -10 -10 ------- Run | Yrd Mat Min Sub Maximum Alert Level . | . . . . Low Security (%) 100 | 100 100 100 . Level 1 . | . . . . Level 2 . | . . . . Level 3 . | . . . . Level 4 . | . . . . Level 5 . | . . . . High Security . | . . . . Max Security . | . . . . Peak Influence 92 | . 92 70 . Initial . | . . . . Average 12 | . 23 5 . Influence Increases 431 | . 269 162 . Destroy 0b10 Robot/C 260 | . 120 140 . Destroy 0b10 Robot/NC 30 | . 30 . . Destroy Leader 60 | . 40 20 . Trap Triggered on 0b10 30 | . 30 . . Successful Hack 17 | . 17 . . Disable Machine 15 | . 15 . . Destroy Structure 4 | . 2 2 . Lose Combat Pursuer 15 | . 15 . . Influence Decreases 431 | . 269 162 . Time Decay 420 | . 259 161 . Lost Part 11 | . 10 1 . Squads Dispatched 1 | . 1 . . Investigation 1 | . 1 . . Extermination . | . . . . Reinforcement . | . . . . Assault . | . . . . Garrison . | . . . . Intercept . | . . . . Searches Triggered . | . . . . Construction Impeded . | . . . . Haulers Reinforced . | . . . . Active Scanning Responses . | . . . . Cargo Convoy Interrupts . | . . . . Stealth | -11 -10 -10 -10 --------- Run | Yrd Mat Min Sub Distress Signals 1 | . 1 . . Communications Jammed . | . . . . Distress Signals . | . . . . Times Spotted 23 | . 12 8 3 Peak Tracking Total 3 | . 3 3 2 Tactical Retreats 1 | . 1 . . Traps | -11 -10 -10 -10 ------- Run | Yrd Mat Min Sub Traps Triggered . | . . . . Indirectly . | . . . . Trap Hack Attempts . | . . . . Triggered . | . . . . Disarmed . | . . . . Reprogrammed 6 | . 6 . . Reused 3 | . 3 . . Traps Extracted . | . . . . Installed . | . . . . Triggered 3 | . 3 . . Machines | -11 -10 -10 -10 ---------- Run | Yrd Mat Min Sub Machines Disabled 1 | . 1 . . Max in Single Turn 1 | . 1 . . Machines Repaired . | . . . . Machines Dismantled . | . . . . Machines Sabotaged . | . . . . Overloaded Fab Kills . | . . . . Hacking | -11 -10 -10 -10 --------- Run | Yrd Mat Min Sub Machines Accessed 8 | . 8 . . Terminals 8 | . 8 . . Fabricators . | . . . . Repair Stations . | . . . . Recycling Units . | . . . . Scanalyzers . | . . . . Garrison Access . | . . . . Total Hacks 19 | . 19 . . Successful 12 | . 12 . . Failed 7 | . 7 . . Catastrophic 1 | . 1 . . Database Lockouts . | . . . . Manual 6 | . 6 . . Terminals 19 | . 19 . . Fabricators . | . . . . Repair Stations . | . . . . Recycling Units . | . . . . Scanalyzers . | . . . . Garrison Access . | . . . . Terminal Hacks 12 | . 12 . . Prototype ID Bank 2 | . 2 . . Locate Traps 5 | . 5 . . Reprogram Traps 1 | . 1 . . Dispatch Records 1 | . 1 . . Transport Status 1 | . 1 . . Hauler Manifests 1 | . 1 . . Zone Layout 1 | . 1 . . Fabricator Hacks . | . . . . Repair Station Hacks . | . . . . Recycling Unit Hacks . | . . . . Scanalyzer . | . . . . Garrison Access Hacks . | . . . . Unauthorized Hacks . | . . . . Terminals . | . . . . Fabricators . | . . . . Repair Stations . | . . . . Recycling Units . | . . . . Scanalyzers . | . . . . Garrison Access . | . . . . Data Cores Recovered 1 | . 1 . . Used . | . . . . Hacking Detections 5 | . 5 . . Full Trace Events 2 | . 2 . . Feedback Events 1 | . 1 . . Corruption 1 | . 1 . . Feedback Blocked . | . . . . Robot Schematics Acquired . | . . . . Robots Built . | . . . . Authchips . | . . . . Time . | . . . . Total Robot Build Rating . | . . . . Part Schematics Acquired . | . . . . Parts Built . | . . . . Authchips . | . . . . Time . | . . . . Total Part Build Rating . | . . . . Parts Repaired . | . . . . Time . | . . . . Parts Recycled . | . . . . Recycled Matter . | . . . . Retrieved Matter . | . . . . Retrieved Components . | . . . . Parts Scanalyzed . | . . . . Part Schematics Acquired . | . . . . Parts Damaged . | . . . . Bothacking | -11 -10 -10 -10 ------------ Run | Yrd Mat Min Sub Used RIF Installer . | . . . . Robots Hacked . | . . . . Non-combat . | . . . . Combat . | . . . . Robot Hacks Applied . | . . . . Relay Couplers Released . | . . . . Fabnet Peak Effective % . | . . . . Robots Rewired . | . . . . Allies Hacked . | . . . . Hacks Repelled . | . . . . Allies | -11 -10 -10 -10 -------- Run | Yrd Mat Min Sub Total Allies . | . . . . Largest Group . | . . . . Highest-Rated Group . | . . . . Highest-Rated Ally . | . . . . Total Orders . | . . . . Ally Attacks . | . . . . Total Damage . | . . . . Kills . | . . . . Allies Corrupted . | . . . . Allies Melted . | . . . . Intel | -11 -10 -10 -10 ------- Run | Yrd Mat Min Sub Active Infowar (turns) . | . . . . Robot Analysis Total . | . . . . Derelict Logs Recovered 2 | . . 2 . Drone Launches . | . . . . Drone Recoveries . | . . . . Exploration | -11 -10 -10 -10 ------------- Run | Yrd Mat Min Sub Turns Passed 3596 | 28 1305 2233 30 Spaces Moved 2063 | 33 712 1307 11 Core 32 | 32 . . . Treads 2031 | 1 712 1307 11 Legs . | . . . . Wheels . | . . . . Hover . | . . . . Flight . | . . . . Fastest Speed 50 | 50 160 160 160 Average Speed 158 | 53 160 160 160 Slowest Speed 160 | 160 160 160 160 Overloaded Moves . | . . . . Propulsion Burnouts . | . . . . Robots Hopped . | . . . . Potential Cave-ins . | . . . . Cave-ins Triggered 1 | . . 1 . Exploration Rate (%) 49 | 4 89 100 3 Regions Visited 3 Branch Regions 2 Pre-discovered Areas . | . . . . Known Exits Taken . | . . . . Unknown Exits Taken 3 | 1 1 1 . Scrap Searched 1 | . . 1 . Spaces Dug 4 | . . 4 . Terrain Destroyed 4 | . . 4 . Melee . | . . . . Projectile 4 | . . 4 . AOE . | . . . . Terrain Rammed . | . . . . Walls Destroyed . | . . . . Machines Disabled . | . . . . Actions | -11 -10 -10 -10 --------- Run | Yrd Mat Min Sub Total 2271 | 44 792 1420 15 Wait 124 | . 26 98 . Move 2060 | 32 711 1306 11 Hop . | . . . . Pick Up 16 | 6 9 1 . Fast Attach . | . . . . Attach 8 | 6 1 1 . Detach . | . . . . Swap 3 | . 1 2 . Drop 1 | . 1 . . Fire 59 | . 43 12 4 Melee . | . . . . Ram . | . . . . Kick . | . . . . Crush . | . . . . Escape Stasis . | . . . . Rewire . | . . . . Trap . | . . . . Miscellaneous . | . . . . Route ------- -11/Scrapyard -10/Materials (discovered 4 exits: [*Mat x2] / [*Min x2]) -10/Mines (discovered 3 exits: [*Mat x2] / [*Sub]) -10/Subcaves History --------- Turn | Location | Event 16 | -11/Scrapyard | Discovered new exit (range 15) 29 | -11/Scrapyard | Entered Materials 289 | -10/Materials | Discovered new exit (range 15) 313 | -10/Materials | Build established: Mutant 612 | -10/Materials | Discovered new exit (range 12) 668 | -10/Materials | Discovered new exit (range 16) 729 | -10/Materials | Derelicts attacked the area 1131 | -10/Materials | Discovered new exit (range 13) 1334 | -10/Materials | Entered Mines 1499 | -10/Mines | Discovered new exit (range 5) 1514 | -10/Mines | Discovered new exit (range 9) 1535 | -10/Mines | Learned Materials terminal intel 1926 | -10/Mines | Learned Materials stockpile data 1947 | -10/Mines | Core integrity fell below 50% 2707 | -10/Mines | Discovered new exit (range 10) 2779 | -10/Mines | Crushed by falling debris 3567 | -10/Mines | Entered Subcaves 3568 | -10/Subcaves | Ambushed by Subdwellers from Twisted Machinery 3568 | -10/Subcaves | Approached by a straggling Scientist 3580 | -10/Subcaves | Core integrity fell below 20% 3592 | -10/Subcaves | Ambushed by Subdwellers from Twisted Machinery 3597 | -10/Subcaves | Destroyed by 2A-809(R) with Subdweller Machine Gun Last Messages --------------- System corrupted: Energy discharge (-67). AKPJCNZ5B0N6R Q&3GY4S System corrupted: Matter fused (-6). Acquired 6 matter. System corrupted: IFF burst signal emitted. &R2EPJW7 UVIPD4%IDKVNYV| KO/XK System corrupted: Matter fused (-8). LOCATION=UNKNOWN AMBIENT_HEAT=-10 GOAL=ESCAPE S2-TT1(R) emerges from the Twisted Machinery. T9-D2G(c): "Thank the algorithms! I was beginning to lose hope I'd never make it past all the Subs lurking out here." T9-D2G(c): "Hey, let me tag along and I can get us both out of this nasty situation. At least I think I can... The group I got separated from was talking about a shortcut back to the UFD." Lgt. Treads destroyed. Map ----- +----------------------------------------------------+ | | | | | | | | | | | | | | | ?????????????????????????????????????????????????? | | ?????????????????????????????????????????????????? | | ?????????????????????????????????????????????????? | | ?????????????????????????????????????????????????? | | ?????????????????????????????????????????????????? | | ?????????????????????????????????????????????????? | | ?????????????????????????????????????????????????? | | ?????????????????????????????????????????????????? | | ?????????????????????????????????????????????????? | | ?????????????????????????????????????????????????? | | ?????????????????????????????????????????????????? | | ?????????????????????????????????????????????????? | | ?????????????????????????????????????????????????? | | ?????????????????????????????????????????????????? | | ????????????????????#####?????#####??????????????? | | ???????????????????## ###### ##?????????????? | | ??????????????????## ## ##????????????? | | ?????????????????## ### "# ""?????????? | | ?????????????? "" @ ## "" ???????????? | | ?????????????""" ## ## "#??????????????? | | ?????????????""" ## ### " #??????????????? | | ?????????????"" R### #??????????????? | | ?????????????"" # ##??????????????? | | ?????????????"" R ""#??????????????? | | ?????????????" ### """"#??????????????? | | ????????????? ????## #### "????????????? | | ?????????????? ???????##### #??? "#???????????? | | ??????????????????????????## c"??? ##???????????? | | ???????????????????????????# ???? #????????????? | | ???????????????????????????# ??? #????????????? | | ??????????????????????????? ??? #????????????? | | ??????????????????????????? ????????????????? | | ?????????????????????????? ????????????????? | | ?????????????????????????? ????????????????? | | ?????????????????????????? #????????????????? | | ??????????????????????????# #????????????????? | | ??????????????????????????## ##????????????????? | | ????????????????????????????###??????????????????? | | ?????????????????????????????????????????????????? | | ?????????????????????????????????????????????????? | | ?????????????????????????????????????????????????? | | ?????????????????????????????????????????????????? | | ?????????????????????????????????????????????????? | +----------------------------------------------------+ Best States ------------- Heat Dissipation 25 Energy Generation 10 Energy Capacity 250 Matter Stores 300 Matter Capacity 300 Sight Range 16 Terrain Scan Density 10 Evasion (%) 50 Recoil Reduction 2 Authchip Count 2 Item Schematics ----------------- None Robot Schematics ------------------ None Fabricated ------------ Nothing Repaired ---------- Nothing Alien Tech Used ----------------- None Achievements -------------- None Challenges ------------ None Game ------ Seed SchematicFlakArray Manual? 0 Play Time 00:15:31 Cumulative 26.2 hours Start 2025.09.14 @ 19:26:16 End 2025.09.14 @ 19:41:26 Sessions 1 Manual Loads 0 Difficulty Rogue Special Mode None Game No. 56 Rogue 56 Adventurer 0 Explorer 0 Win Type - Total 0 Types 0/0/0/0/0/0/0/0/0/0 Lore% 21 Gallery% 20 Achievement% 17 Wizard Run 0 Options --------- Layout 1 ASCII 0 Keyboard 0 Movement Mouse Keybinds 0 Fullscreen 2 Font 24/Smallcaps Map View 50x35 Zoom Use 0% Tactical HUD 0 Map Filters NONE Filters NONE Steam 1 RUN: 4516b607-4c22-415a-aeb3-400a48475074